[Event "35th Roquetas Festival 2024"]
[Site "Roquetas de Mar"]
[Date "2024.01.06"]
[Round "7.20"]
[White "Juan Lepp, Jaime Boris"]
[Black "Perea Fruet, Lorenzo"]
[Result "0-1"]
[ECO "B22"]
[WhiteElo "2075"]
[BlackElo "2323"]
[Annotator "RC"]
[PlyCount "114"]
[EventDate "2024.01.02"]
[EventType "swiss"]
[EventCountry "ESP"]
[SourceTitle "playchess.com"]
[Source "ChessBase"]
[SourceQuality "1"]
[TimeControl "5400+30"]

1. e4 {[%emt 0:00:03]} c5 {[%emt 0:06:38]} 2. c3 {[%emt 0:00:22]} Nf6 {[%emt 0:00:05]} 3. e5 {[%emt 0:00:02]} Nd5 {[%emt 0:00:02]} 4. d4 {[%emt 0:00:31]} cxd4 {[%emt 0:00:06]} 5. cxd4 {[%emt 0:00:05]} d6 {[%emt 0:00:25]} 6. Nf3 {[%emt 0:00:21]} Nc6 7. Bc4 {[%emt 0:04:15]} dxe5 {[%emt 0:01:09]} 8. Bxd5 {[%emt 0:03:45]} Qxd5 {[%emt 0:00:59]} 9. Nc3 {[%emt 0:00:04]} Qd6 {[%emt 0:00:15]} 10. d5 {[%emt 0:00:56]} Nd4 11. Nxd4 {[%emt 0:00:17]} exd4 {[%emt 0:00:06]} 12. Qxd4 {[%emt 0:00:15]} e5 {[%emt 0:00:57]} 13. Qd3 {[%emt 0:05:38]} Bd7 {[%emt 0:04:02]} 14. O-O {[%emt 0:00:55]} f5 {[%emt 0:01:19]} 15. Re1 {[%emt 0:00:52]} Kf7 16. Bd2 {[%emt 0:23:22]} a6 {[%emt 0:08:12]} 17. Rac1 {[%emt 0:18:22]} g6 {[%emt 0:03:15]} 18. Qf3 {[%emt 0:01:28]} Qf6 {[%emt 0:05:19]} 19. Ne2 {[%emt 0:02:15]} Bd6 {[%emt 0:00:56]} 20. Qb3 {[%emt 0:01:08]} b5 {[%emt 0:03:11]} 21. f4 {[%emt 0:04:27]} Rhe8 {[%emt 0:03:51]} 22. Bc3 {[%emt 0:06:29]} a5 {[%emt 0:05:19]} 23. Ng3 {[%emt 0:08:48]} b4 {[%emt 0:04:31]} 24. fxe5 {[%emt 0:01:51]} Bxe5 {[%emt 0:00:16]} 25. Bxe5 {[%emt 0:01:23]} Rxe5 {[%emt 0:03:57]} 26. Red1 {[%emt 0:04:04]} Qb6+ {[%emt 0:02:40]} 27. Kh1 {[%emt 0:00:25]} Rae8 {[%emt 0:00:17]} 28. Qc4 {[%emt 0:01:51]} Qf2 {[%emt 0:01:21]} 29. Rf1 {[%emt 0:04:46]} Qb6 {[%emt 0:03:35]} 30. d6+ {[%emt 0:01:25]} Kf8 {[%emt 0:00:42]} 31. Qc7 {[%emt 0:00:43]} Qb5 {[%emt 0:00:37]} 32. Qa7 {[%emt 0:01:23]} h5 {[%emt 0:00:58]} 33. Qd4 {[%emt 0:00:22]} Qd5 {[%emt 0:02:02]} 34. Qf4 {[%emt 0:02:26]} Qe6 {[%emt 0:01:46]} 35. Qh6+ {[%emt 0:00:48]} Kg8 {[%emt 0:00:13]} 36. Rcd1 {[%emt 0:00:57]} Qf7 {[%emt 0:01:38]} 37. Rc1 {[%emt 0:01:07]} R8e6 {[%emt 0:01:37]} 38. Qf4 {[%emt 0:00:46]} Qf6 {[%emt 0:00:30]} 39. Rfd1 {[%emt 0:00:31]} h4 {[%emt 0:00:45]} 40. Nf1 {[%emt 0:00:13]} h3 {[%emt 0:00:09]} 41. gxh3 {[%emt 0:00:33]} Rxd6 {[%emt 0:02:03]} 42. Rxd6 {[%emt 0:00:29]} Qxd6 {[%emt 0:00:03]} 43. Qg3 {[%emt 0:00:46]} a4 {[%emt 0:01:50]} 44. h4 {[%emt 0:00:21]} Kh7 {[%emt 0:00:47]} 45. a3 {[%emt 0:00:24]} bxa3 {[%emt 0:00:28]} 46. bxa3 {[%emt 0:00:11]} Bc6+ {[%emt 0:01:10]} 47. Kg1 {[%emt 0:00:07]} Qd4+ {[%emt 0:00:17]} 48. Qf2 {[%emt 0:00:30]} Qd6 {[%emt 0:00:54]} 49. Qa7+ {[%emt 0:00:23]} Kh6 {[%emt 0:00:56]} 50. Qb6 {[%emt 0:00:23]} Re6 {[%emt 0:00:14]} 51. Qb2 {[%emt 0:00:20]} Kh7 {[%emt 0:00:30]} 52. Qb6 {[%emt 0:00:39]} f4 {[%emt 0:00:59]} 53. Qc5 {[%emt 0:01:10]} Qd7 {[%emt 0:00:06]} 54. h3 {[%emt 0:00:53]} Rf6 {[%emt 0:00:57]} 55. Re1 {[%emt 0:00:36]} Rf7 {[%emt 0:00:19]} 56. Kh2 {[%emt 0:00:20]} Qb7 {[%emt 0:00:39]} 57. h5 {[%emt 0:00:21]} Qb2+ {[%emt 0:00:05]} 0-1

[Event "35th Roquetas Festival 2024"]
[Site "Roquetas de Mar"]
[Date "2024.01.06"]
[Round "7.21"]
[White "Alshameary Puente, Ismael"]
[Black "Gonzalez Castillo, Jose Javier"]
[Result "1-0"]
[ECO "A40"]
[WhiteElo "2317"]
[BlackElo "2231"]
[Annotator "RC"]
[PlyCount "61"]
[EventDate "2024.01.02"]
[EventType "swiss"]
[EventCountry "ESP"]
[SourceTitle "playchess.com"]
[Source "ChessBase"]
[SourceQuality "1"]
[TimeControl "5400+30"]

1. d4 {[%emt 0:00:01]} g6 {[%emt 0:05:34]} 2. c4 {[%emt 0:01:27]} Bg7 {[%emt 0:00:11]} 3. Nc3 {[%emt 0:01:58]} c5 {[%emt 0:01:45]} 4. d5 {[%emt 0:00:35]} d6 {[%emt 0:02:47]} 5. e4 {[%emt 0:00:25]} Bxc3+ {[%emt 0:00:10]} 6. bxc3 {[%emt 0:00:06]} e5 {[%emt 0:00:04]} 7. h4 {[%emt 0:07:28]} Qe7 {[%emt 0:03:04]} 8. h5 {[%emt 0:02:59]} Kd8 {[%emt 0:00:07]} 9. Rb1 {[%emt 0:06:59]} Kc7 {[%emt 0:01:27]} 10. Nf3 {[%emt 0:04:44]} Nd7 {[%emt 0:09:50]} 11. Qb3 {[%emt 0:10:55]} Ngf6 {[%emt 0:03:58]} 12. hxg6 {[%emt 0:00:10]} fxg6 {[%emt 0:00:03]} 13. Bd3 {[%emt 0:09:34]} Nh5 14. Ng5 {[%emt 0:05:41]} Nf8 {[%emt 0:13:55]} 15. g3 {[%emt 0:00:44]} h6 {[%emt 0:01:06]} 16. Nf3 {[%emt 0:01:57]} Nd7 {[%emt 0:02:18]} 17. Be3 {[%emt 0:10:22]} Qf7 {[%emt 0:04:43]} 18. Be2 {[%emt 0:01:31]} Ndf6 {[%emt 0:03:11]} 19. Nd2 {[%emt 0:01:52]} b6 {[%emt 0:11:53]} 20. a4 {[%emt 0:03:32]} Ng4 {[%emt 0:04:59]} 21. Bxg4 {[%emt 0:04:59]} Bxg4 {[%emt 0:00:02]} 22. a5 {[%emt 0:00:56]} Rab8 {[%emt 0:03:00]} 23. Qa4 {[%emt 0:01:40]} Bd7 {[%emt 0:00:57]} 24. axb6+ {[%emt 0:00:32]} axb6 {[%emt 0:00:11]} 25. Qa7+ {[%emt 0:00:25]} Rb7 {[%emt 0:00:25]} 26. Qa6 {[%emt 0:00:06]} Rf8 {[%emt 0:05:13]} 27. O-O {[%emt 0:03:41]} g5 {[%emt 0:03:58]} 28. Rb2 {[%emt 0:07:37]} Qg8 {[%emt 0:03:37]} 29. Bxc5 {[%emt 0:01:21]} dxc5 {[%emt 0:07:03]} 30. d6+ {[%emt 0:00:07]} Kc6 {[%emt 0:00:48]} 31. Nb3 {[%emt 0:00:11]} 1-0

[Event "35th Roquetas Festival 2024"]
[Site "Roquetas de Mar"]
[Date "2024.01.06"]
[Round "7.22"]
[White "Diaz Mino, Daniel"]
[Black "Schenderowitsch, Michael"]
[Result "1-0"]
[ECO "B12"]
[WhiteElo "2074"]
[BlackElo "2281"]
[Annotator "RC"]
[PlyCount "103"]
[EventDate "2024.01.02"]
[EventType "swiss"]
[EventCountry "ESP"]
[SourceTitle "playchess.com"]
[Source "ChessBase"]
[SourceQuality "1"]
[TimeControl "5400+30"]

1. e4 {[%emt 0:00:02]} c6 {[%emt 0:00:05]} 2. d4 {[%emt 0:00:04]} d5 {[%emt 0:00:05]} 3. e5 {[%emt 0:00:03]} c5 {[%emt 0:00:07]} 4. dxc5 {[%emt 0:00:03]} e6 {[%emt 0:00:06]} 5. a3 {[%emt 0:00:17]} Bxc5 {[%emt 0:00:08]} 6. Nf3 {[%emt 0:01:02]} f6 {[%emt 0:01:02]} 7. b4 {[%emt 0:00:21]} Be7 {[%emt 0:00:06]} 8. Bb2 {[%emt 0:01:06]} a5 {[%emt 0:00:19]} 9. b5 {[%emt 0:07:09]} Nd7 {[%emt 0:00:07]} 10. Bd3 {[%emt 0:02:46]} Nh6 {[%emt 0:00:11]} 11. O-O {[%emt 0:02:36]} Nf7 {[%emt 0:00:18]} 12. exf6 {[%emt 0:09:45]} Bxf6 {[%emt 0:00:06]} 13. Nc3 {[%emt 0:02:34]} Nc5 {[%emt 0:08:04]} 14. Re1 {[%emt 0:07:01]} O-O {[%emt 0:02:49]} 15. Qd2 {[%emt 0:14:41]} a4 {[%emt 0:10:25]} 16. Rab1 {[%emt 0:02:41]} b6 {[%emt 0:10:44]} 17. Nd1 {[%emt 0:28:30]} Bxb2 {[%emt 0:17:59]} 18. Nxb2 {[%emt 0:00:03]} Qf6 {[%emt 0:04:09]} 19. Qe3 {[%emt 0:00:41]} Bb7 {[%emt 0:04:24]} 20. Re2 {[%emt 0:00:15]} Rad8 {[%emt 0:10:38]} 21. Ne5 {[%emt 0:01:41]} Nd6 {[%emt 0:03:15]} 22. Rbe1 {[%emt 0:02:17]} Nde4 {[%emt 0:08:46]} 23. Bxe4 {[%emt 0:00:22]} Nxe4 {[%emt 0:03:09]} 24. Nxa4 {[%emt 0:00:18]} d4 {[%emt 0:07:46]} 25. Qb3 {[%emt 0:00:01]} Bd5 {[%emt 0:01:56]} 26. Qb4 {[%emt 0:02:33]} Qxe5 {[%emt 0:05:22]} 27. f3 {[%emt 0:00:01]} Qc7 {[%emt 0:00:11]} 28. fxe4 {[%emt 0:01:44]} Bc4 {[%emt 0:00:00]} 29. Rd2 Qf4 {[%emt 0:01:45]} 30. g3 {[%emt 0:03:34]} Qc7 {[%emt 0:00:19]} 31. Nxb6 {[%emt 0:04:10]} Qxb6 {[%emt 0:00:32]} 32. Qxc4 {[%emt 0:00:01]} d3+ {[%emt 0:00:22]} 33. Kg2 {[%emt 0:00:48]} dxc2 {[%emt 0:00:53]} 34. Rxc2 {[%emt 0:00:36]} Kh8 {[%emt 0:00:44]} 35. Ree2 {[%emt 0:02:15]} e5 {[%emt 0:00:34]} 36. Qc5 {[%emt 0:00:44]} Qe6 {[%emt 0:00:17]} 37. Rf2 {[%emt 0:00:44]} Rfe8 {[%emt 0:00:11]} 38. a4 {[%emt 0:01:30]} Qg4 {[%emt 0:00:38]} 39. Rce2 {[%emt 0:00:38]} h5 {[%emt 0:00:13]} 40. Qe3 {[%emt 0:01:49]} h4 {[%emt 0:00:29]} 41. h3 {[%emt 0:00:16]} Qg6 {[%emt 0:00:14]} 42. Rf5 {[%emt 0:00:32]} Rd4 {[%emt 0:01:12]} 43. Rg5 {[%emt 0:00:18]} Qh7 {[%emt 0:00:43]} 44. Rxe5 {[%emt 0:01:03]} Rdd8 {[%emt 0:00:31]} 45. Qg5 {[%emt 0:01:28]} hxg3 {[%emt 0:00:21]} 46. Rxe8+ {[%emt 0:00:36]} Rxe8 {[%emt 0:00:01]} 47. Kxg3 Rf8 48. Rd2 {[%emt 0:01:22]} Kg8 {[%emt 0:01:40]} 49. Rd8 {[%emt 0:00:35]} Rxd8 {[%emt 0:00:15]} 50. Qxd8+ {[%emt 0:00:03]} Kf7 {[%emt 0:00:01]} 51. Qd7+ {[%emt 0:00:19]} Kf8 {[%emt 0:00:36]} 52. Qf5+ {[%emt 0:00:03]} 1-0

[Event "35th Roquetas Festival 2024"]
[Site "Roquetas de Mar"]
[Date "2024.01.06"]
[Round "7.23"]
[White "Bru Rullo, Llatzer"]
[Black "Martinez Piqueras, Carlos"]
[Result "1-0"]
[ECO "D30"]
[WhiteElo "2278"]
[BlackElo "2126"]
[Annotator "RC"]
[PlyCount "161"]
[EventDate "2024.01.02"]
[EventType "swiss"]
[EventCountry "ESP"]
[SourceTitle "playchess.com"]
[Source "ChessBase"]
[SourceQuality "1"]
[TimeControl "5400+30"]

1. d4 {[%emt 0:00:03]} d5 {[%emt 0:03:38]} 2. c4 {[%emt 0:00:11]} e6 {[%emt 0:00:16]} 3. Nf3 {[%emt 0:00:11]} Nf6 {[%emt 0:00:06]} 4. g3 {[%emt 0:00:20]} Bb4+ {[%emt 0:00:07]} 5. Bd2 {[%emt 0:00:13]} Be7 {[%emt 0:00:05]} 6. Bg2 {[%emt 0:00:14]} c6 {[%emt 0:00:13]} 7. Qc2 {[%emt 0:00:25]} O-O {[%emt 0:00:32]} 8. O-O {[%emt 0:00:05]} Nbd7 {[%emt 0:01:16]} 9. Rd1 {[%emt 0:00:20]} b6 {[%emt 0:00:11]} 10. b3 {[%emt 0:00:28]} Bb7 {[%emt 0:00:21]} 11. Nc3 {[%emt 0:01:17]} Rc8 {[%emt 0:00:28]} 12. e4 {[%emt 0:01:07]} c5 {[%emt 0:05:43]} 13. exd5 {[%emt 0:00:38]} exd5 {[%emt 0:01:35]} 14. Be3 {[%emt 0:02:22]} dxc4 {[%emt 0:19:07]} 15. d5 {[%emt 0:00:26]} Ne8 {[%emt 0:00:07]} 16. d6 {[%emt 0:20:02]} Bf6 {[%emt 0:07:03]} 17. Ng5 {[%emt 0:12:27]} Bxg5 {[%emt 0:00:47]} 18. Bxb7 {[%emt 0:01:03]} Bxe3 {[%emt 0:11:27]} 19. fxe3 {[%emt 0:07:25]} Rb8 {[%emt 0:01:03]} 20. Bg2 {[%emt 0:00:02]} Qg5 {[%emt 0:03:56]} 21. Qe4 {[%emt 0:09:01]} Nef6 {[%emt 0:10:51]} 22. Qf4 {[%emt 0:01:10]} Qe5 {[%emt 0:00:05]} 23. Nd5 {[%emt 0:04:51]} Rbe8 {[%emt 0:09:19]} 24. Nxf6+ {[%emt 0:06:26]} Nxf6 {[%emt 0:00:14]} 25. d7 {[%emt 0:00:57]} Nxd7 {[%emt 0:00:29]} 26. Bc6 {[%emt 0:00:15]} Nf6 {[%emt 0:01:04]} 27. Bxe8 {[%emt 0:00:11]} Qxe8 {[%emt 0:00:05]} 28. bxc4 {[%emt 0:01:20]} Qe7 {[%emt 0:01:03]} 29. Rd3 {[%emt 0:01:31]} Ne4 {[%emt 0:02:31]} 30. Rad1 {[%emt 0:04:08]} Ng5 {[%emt 0:08:07]} 31. Kg2 {[%emt 0:04:23]} Qb7+ {[%emt 0:00:57]} 32. Rd5 {[%emt 0:00:11]} Ne6 {[%emt 0:00:03]} 33. Qe4 {[%emt 0:02:55]} Ng5 {[%emt 0:01:41]} 34. Qg4 {[%emt 0:01:24]} Ne6 {[%emt 0:00:35]} 35. Kg1 {[%emt 0:01:01]} Qa6 {[%emt 0:00:17]} 36. R1d2 {[%emt 0:00:17]} h6 {[%emt 0:02:12]} 37. Rd7 {[%emt 0:01:20]} Qa3 {[%emt 0:00:27]} 38. Qe2 {[%emt 0:04:16]} Qc3 {[%emt 0:03:35]} 39. Qd3 {[%emt 0:02:27]} Qe5 {[%emt 0:00:12]} 40. Rd5 {[%emt 0:02:03]} Qc7 {[%emt 0:00:14]} 41. Rf2 {[%emt 0:00:37]} Ng5 {[%emt 0:00:16]} 42. Kg2 {[%emt 0:00:40]} Qc8 {[%emt 0:01:01]} 43. Rd7 {[%emt 0:01:42]} Qc6+ {[%emt 0:03:08]} 44. Qd5 {[%emt 0:03:37]} Qg6 {[%emt 0:01:11]} 45. Rxa7 {[%emt 0:01:06]} Kh7 {[%emt 0:01:33]} 46. Qf5 {[%emt 0:00:30]} Ne4 {[%emt 0:00:07]} 47. Qxg6+ {[%emt 0:02:31]} Kxg6 {[%emt 0:00:01]} 48. Rf4 {[%emt 0:00:13]} Nd6 {[%emt 0:01:23]} 49. Rd7 {[%emt 0:00:37]} Nf5 {[%emt 0:00:35]} 50. Kf3 {[%emt 0:00:50]} h5 {[%emt 0:01:46]} 51. Rd5 {[%emt 0:00:33]} Nh6 {[%emt 0:00:26]} 52. Rd6+ {[%emt 0:00:45]} f6 {[%emt 0:00:01]} 53. Rxb6 {[%emt 0:00:16]} Ng4 {[%emt 0:00:12]} 54. Rxg4+ {[%emt 0:02:00]} hxg4+ {[%emt 0:00:01]} 55. Kxg4 {[%emt 0:00:01]} Ra8 {[%emt 0:00:12]} 56. Rc6 {[%emt 0:00:35]} Rxa2 {[%emt 0:00:06]} 57. h4 {[%emt 0:00:24]} Ra3 {[%emt 0:01:50]} 58. e4 {[%emt 0:00:29]} Re3 {[%emt 0:01:32]} 59. Kf4 {[%emt 0:00:19]} Re1 {[%emt 0:00:04]} 60. Rxc5 {[%emt 0:00:11]} Rf1+ {[%emt 0:00:09]} 61. Ke3 {[%emt 0:00:30]} Re1+ {[%emt 0:00:05]} 62. Kf3 {[%emt 0:00:23]} Rc1 {[%emt 0:01:50]} 63. Rc7 {[%emt 0:00:32]} Kh6 {[%emt 0:00:53]} 64. c5 {[%emt 0:00:16]} g5 {[%emt 0:00:05]} 65. hxg5+ {[%emt 0:01:24]} Kxg5 {[%emt 0:00:12]} 66. c6 {[%emt 0:00:21]} Rc3+ {[%emt 0:00:10]} 67. Kf2 {[%emt 0:00:23]} Kg6 {[%emt 0:00:17]} 68. Rc8 {[%emt 0:00:28]} Kg7 {[%emt 0:01:56]} 69. c7 {[%emt 0:00:23]} Kh7 {[%emt 0:00:04]} 70. Kg2 {[%emt 0:00:18]} Kg7 {[%emt 0:00:15]} 71. Kh3 {[%emt 0:00:17]} Rc4 {[%emt 0:00:05]} 72. g4 {[%emt 0:00:34]} Rc3+ {[%emt 0:00:18]} 73. Kh4 {[%emt 0:00:18]} Rc5 {[%emt 0:00:04]} 74. Kg3 {[%emt 0:00:17]} Rc1 {[%emt 0:00:25]} 75. Kf4 {[%emt 0:00:21]} Rc3 {[%emt 0:01:58]} 76. g5 {[%emt 0:00:26]} fxg5+ {[%emt 0:00:13]} 77. Kxg5 {[%emt 0:00:12]} Rc1 {[%emt 0:00:07]} 78. Kf5 {[%emt 0:01:01]} Rc5+ {[%emt 0:00:47]} 79. Ke6 {[%emt 0:00:32]} Rc4 {[%emt 0:00:17]} 80. e5 {[%emt 0:00:48]} Rc1 {[%emt 0:00:21]} 81. Rd8 {[%emt 0:00:55]} 1-0

[Event "35th Roquetas Festival 2024"]
[Site "Roquetas de Mar"]
[Date "2024.01.06"]
[Round "7.24"]
[White "Fiorito, Fabian"]
[Black "Torres Rebolledo, Victor"]
[Result "1/2-1/2"]
[ECO "A05"]
[WhiteElo "2274"]
[BlackElo "2124"]
[Annotator "RC"]
[PlyCount "45"]
[EventDate "2024.01.02"]
[EventType "swiss"]
[EventCountry "ESP"]
[SourceTitle "playchess.com"]
[Source "ChessBase"]
[SourceQuality "1"]
[TimeControl "5400+30"]

1. Nf3 {[%emt 0:00:02]} Nf6 {[%emt 0:01:26]} 2. g3 {[%emt 0:00:02]} d5 {[%emt 0:00:59]} 3. Bg2 {[%emt 0:00:04]} e6 {[%emt 0:00:06]} 4. O-O {[%emt 0:00:04]} Be7 {[%emt 0:00:09]} 5. d4 {[%emt 0:03:47]} O-O {[%emt 0:00:09]} 6. b3 {[%emt 0:00:01]} c5 {[%emt 0:01:44]} 7. e3 {[%emt 0:05:05]} b6 {[%emt 0:02:41]} 8. Bb2 {[%emt 0:00:09]} Bb7 {[%emt 0:01:16]} 9. Nbd2 {[%emt 0:00:38]} Nbd7 {[%emt 0:02:37]} 10. Re1 {[%emt 0:02:45]} Rc8 {[%emt 0:02:20]} 11. c4 {[%emt 0:00:48]} Qc7 {[%emt 0:02:35]} 12. Rc1 {[%emt 0:05:51]} Qb8 {[%emt 0:00:34]} 13. Qe2 {[%emt 0:01:29]} Rfe8 {[%emt 0:08:38]} 14. a3 {[%emt 0:01:26]} a5 {[%emt 0:05:35]} 15. Red1 {[%emt 0:03:44]} Qa8 {[%emt 0:02:47]} 16. a4 {[%emt 0:02:24]} Bf8 {[%emt 0:01:47]} 17. h3 {[%emt 0:02:08]} h6 {[%emt 0:08:25]} 18. Kh2 {[%emt 0:01:04]} Qb8 {[%emt 0:01:23]} 19. Kg1 {[%emt 0:00:12]} Qa8 {[%emt 0:00:07]} 20. Kh2 {[%emt 0:00:04]} Qb8 {[%emt 0:00:05]} 21. Kg1 {[%emt 0:00:04]} Qa8 {[%emt 0:00:03]} 22. Kh2 {[%emt 0:00:05]} Qb8 {[%emt 0:00:08]} 23. Kg1 {[%emt 0:00:36]} 1/2-1/2

[Event "35th Roquetas Festival 2024"]
[Site "Roquetas de Mar"]
[Date "2024.01.06"]
[Round "7.25"]
[White "Serrano Almendros, Angel"]
[Black "Kumar, Sanjit S"]
[Result "1-0"]
[ECO "C18"]
[WhiteElo "2250"]
[BlackElo "1952"]
[Annotator "RC"]
[PlyCount "55"]
[EventDate "2024.01.02"]
[EventType "swiss"]
[EventCountry "ESP"]
[SourceTitle "playchess.com"]
[Source "ChessBase"]
[SourceQuality "1"]
[TimeControl "5400+30"]

1. e4 {[%emt 0:00:03]} e6 {[%emt 0:00:03]} 2. d4 {[%emt 0:00:03]} d5 {[%emt 0:00:08]} 3. Nc3 {[%emt 0:00:06]} Bb4 {[%emt 0:00:04]} 4. e5 {[%emt 0:00:33]} c5 {[%emt 0:00:04]} 5. a3 {[%emt 0:00:33]} Bxc3+ {[%emt 0:00:05]} 6. bxc3 {[%emt 0:00:04]} Ne7 {[%emt 0:00:05]} 7. Qg4 {[%emt 0:00:13]} Qc7 {[%emt 0:00:04]} 8. Qxg7 {[%emt 0:00:20]} Rg8 {[%emt 0:00:07]} 9. Qxh7 {[%emt 0:00:06]} cxd4 {[%emt 0:00:04]} 10. Ne2 {[%emt 0:00:38]} Nbc6 {[%emt 0:00:09]} 11. f4 {[%emt 0:00:10]} dxc3 {[%emt 0:00:05]} 12. h4 {[%emt 0:00:04]} Bd7 {[%emt 0:04:22]} 13. h5 {[%emt 0:00:20]} O-O-O {[%emt 0:03:51]} 14. Qd3 {[%emt 0:00:09]} d4 {[%emt 0:01:13]} 15. h6 {[%emt 0:00:18]} Rg6 {[%emt 0:03:49]} 16. h7 {[%emt 0:00:20]} Rh8 {[%emt 0:00:05]} 17. Nxd4 {[%emt 0:00:10]} Nxd4 {[%emt 0:00:08]} 18. Qxd4 {[%emt 0:00:05]} Nf5 {[%emt 0:10:07]} 19. Qxa7 {[%emt 0:05:39]} Bc6 {[%emt 0:08:22]} 20. Rh3 {[%emt 0:24:10]} Ng3 {[%emt 0:09:25]} 21. Be3 {[%emt 0:02:33]} b6 {[%emt 0:04:47]} 22. Ba6+ {[%emt 0:01:53]} Kd7 {[%emt 0:13:23]} 23. Rd1+ {[%emt 0:16:40]} Bd5 {[%emt 0:00:09]} 24. Rxd5+ {[%emt 0:00:04]} exd5 {[%emt 0:00:19]} 25. Bb5+ {[%emt 0:00:02]} Kc8 {[%emt 0:00:10]} 26. Qa8+ {[%emt 0:00:05]} Qb8 {[%emt 0:00:28]} 27. Ba6+ {[%emt 0:00:02]} Kc7 {[%emt 0:00:09]} 28. Qxd5 {[%emt 0:00:04]} 1-0

[Event "35th Roquetas Festival 2024"]
[Site "Roquetas de Mar"]
[Date "2024.01.06"]
[Round "7.26"]
[White "Collado Alcolado, Angel"]
[Black "Korneev Leskova, Svyatoslav"]
[Result "1/2-1/2"]
[ECO "C15"]
[WhiteElo "1977"]
[BlackElo "2248"]
[Annotator "RC"]
[PlyCount "39"]
[EventDate "2024.01.02"]
[EventType "swiss"]
[EventCountry "ESP"]
[SourceTitle "playchess.com"]
[Source "ChessBase"]
[SourceQuality "1"]
[TimeControl "5400+30"]

1. e4 e6 {[%emt 0:04:41]} 2. d4 {[%emt 0:00:11]} d5 {[%emt 0:00:11]} 3. Nc3 {[%emt 0:00:04]} Bb4 {[%emt 0:00:06]} 4. exd5 {[%emt 0:00:04]} exd5 {[%emt 0:00:05]} 5. Bd3 {[%emt 0:00:04]} Nf6 {[%emt 0:02:34]} 6. Nge2 {[%emt 0:00:05]} O-O {[%emt 0:04:14]} 7. O-O {[%emt 0:00:06]} h6 {[%emt 0:10:50]} 8. a3 {[%emt 0:00:33]} Ba5 {[%emt 0:01:48]} 9. Bf4 {[%emt 0:00:31]} Nc6 {[%emt 0:01:50]} 10. Qd2 {[%emt 0:03:18]} Ne4 {[%emt 0:13:56]} 11. Bxe4 {[%emt 0:11:48]} dxe4 {[%emt 0:01:27]} 12. b4 {[%emt 0:01:32]} Bb6 {[%emt 0:00:03]} 13. Nxe4 {[%emt 0:02:05]} Nxd4 {[%emt 0:06:29]} 14. Nxd4 {[%emt 0:00:57]} Qxd4 {[%emt 0:00:17]} 15. Qxd4 {[%emt 0:00:21]} Bxd4 {[%emt 0:00:05]} 16. Rad1 {[%emt 0:00:13]} Bb2 {[%emt 0:12:09]} 17. Rb1 {[%emt 0:02:43]} Bd4 {[%emt 0:01:20]} 18. Rbd1 {[%emt 0:00:16]} Bb2 {[%emt 0:00:12]} 19. Rb1 {[%emt 0:03:43]} Bd4 {[%emt 0:00:06]} 20. Rbd1 {[%emt 0:07:16]} 1/2-1/2

[Event "35th Roquetas Festival 2024"]
[Site "Roquetas de Mar"]
[Date "2024.01.06"]
[Round "8.1"]
[White "Stremavicius, Titas"]
[Black "Grigoryan, Karen H."]
[Result "1-0"]
[ECO "D02"]
[WhiteElo "2543"]
[BlackElo "2643"]
[Annotator "TA"]
[PlyCount "103"]
[EventDate "2024.01.02"]
[EventType "swiss"]
[EventCountry "ESP"]
[TimeControl "5400+30"]

{[%evp 15,103,22,24,26,33,37,57,45,67,47,40,46,56,43,49,38,47,55,41,36,81,77,83,77,87,86,102,114,118,108,109,101,95,99,118,106,136,143,152,152,149,137,116,106,343,332,297,335,327,325,295,252,564,563,549,547,1642,1504,1260,1217,11886,12693,12829,12827,12832,12830,12825,2070,12837,12837,12840,12839,12839,12840,12841,12842,12842,12842,12843,12843,12844,12844,12845,12845,12845,12846,12846,12847,12847,12847]} 1. d4 d5 2. Nf3 c5 3. c4 dxc4 4. e4 cxd4 5. Qxd4 Qxd4 6. Nxd4 Bd7 7. Bxc4 Nc6 8. Nxc6 Bxc6 9. f3 {D20: Queen's Gambit Accepted: 3 e3 and 3 e4.} e6 10. Be3 Nf6 11. Nd2 {White is slightly better.} Be7 {[#]} 12. Nb3 $146 ({Predecessor:} 12. Rc1 O-O 13. O-O Rfc8 14. Nb3 a5 15. Be2 Kf8 16. Nd2 Nd7 17. Rfd1 Ba4 18. Rxc8+ Rxc8 {½-½ Kuzmin,G-Bukhman,E URS-ch33 Final 1965 (15)}) 12... O-O 13. Kf2 Rfc8 {[%cal Oc6e4]} 14. Rac1 a5 15. Be2 a4 16. Nd4 Bd7 17. Nb5 Bxb5 18. Bxb5 a3 19. b3 Bd6 20. g3 Be5 21. Rxc8+ Rxc8 22. Rc1 {Wards off Rc2+} Rxc1 23. Bxc1 $16 {[%mdl 4096] Endgame KBB-KBN} Bb2 24. Be3 h6 25. h4 e5 26. g4 {[%cal Bg3g4,Bg4g5][%mdl 32]} h5 27. g5 Nh7 28. Bc4 {[#] And now g6 would win.} Nf8 29. b4 {[%cal Bb3b4,Bb4b5][%mdl 32]} Bd4 $2 {This move loses the game for Black.} (29... g6 $16) 30. Bxd4 $18 exd4 {KB-KN} 31. f4 Ng6 32. Kg3 Kf8 33. b5 f6 $2 (33... Ke8 {is a better chance.} 34. Be2 Nf8 35. Bxh5 Nd7) 34. gxf6 {White is clearly winning.} gxf6 35. Be2 f5 36. Bxh5 ({Weaker is} 36. exf5 Ne7 $16) 36... Ne7 37. Bf3 {Black must now prevent e5.} b6 38. h5 fxe4 39. Bxe4 Kg7 40. f5 Ng8 41. Kf4 Kh6 42. Ke5 {White wants to mate with Bd5.} Kxh5 43. Kxd4 Kg5 44. Ke5 Nh6 45. Kd6 Kf4 46. Bc2 Ng4 47. Kc7 Ne3 {[#]} 48. Kxb6 $1 Nxc2 (48... Ng4 49. Kc7) 49. f6 {[%cal Bf5f6,Bf6f7][%mdl 32]} Nd4 50. f7 Ne6 51. Ka7 Ke5 52. b6 {Weighted Error Value: White=0.02 (flawless) /Black=0.33} 1-0

[Event "35th Roquetas Festival 2024"]
[Site "Roquetas de Mar"]
[Date "2024.01.06"]
[Round "8.2"]
[White "Suarez Uriel, Adrian"]
[Black "Bernadskiy, Vitaliy"]
[Result "1/2-1/2"]
[ECO "B18"]
[WhiteElo "2365"]
[BlackElo "2566"]
[Annotator "ChessBase"]
[PlyCount "31"]
[EventDate "2024.01.02"]
[EventType "swiss"]
[EventCountry "ESP"]
[SourceTitle "playchess.com"]
[Source "ChessBase"]
[SourceQuality "1"]
[TimeControl "5400+30"]

1. e4 c6 2. d4 d5 3. Nc3 dxe4 4. Nxe4 Bf5 5. Ng3 Bg6 6. N1e2 Nf6 7. Nf4 e5 8. Nxg6 hxg6 9. dxe5 Qa5+ 10. Bd2 Qxe5+ 11. Qe2 Nbd7 12. O-O-O Qxe2 13. Bxe2 O-O-O 14. h3 Bc5 15. Rhf1 Nh5 16. Bd3 1/2-1/2